fUSD/lending_fUSD_20250207
["ID","MTS","AMOUNT","RATE_DAILY","PERIOD"]
[352122342,1738955441517,-500.0,0.00016438,2]
[352122344,1738955441531,-500.0,0.00016438,2]
[352122347,1738955441543,-500.0,0.00016438,2]
[352122349,1738955441555,-500.0,0.00016438,2]
[352122351,1738955441567,-500.0,0.00016438,2]
[352122354,1738955441580,-500.0,0.00016438,2]
[352122356,1738955441592,-500.0,0.00016438,2]
[352122358,1738955441605,-504.05,0.00016438,2]
[352122361,1738955441617,-500.0,0.00016438,2]
[352122363,1738955441629,-161.8,0.00016438,2]
[352122365,1738955441641,-500.0,0.00016438,2]
[352122368,1738955441653,-500.0,0.00016438,2]
[352122370,1738955441665,-500.0,0.00016438,2]
[352122372,1738955441677,-500.0,0.00016438,2]
[352122375,1738955441689,-781.11,0.00016438,2]
[352122377,1738955441701,-500.0,0.00016438,2]
[352122379,1738955441713,-1542.43,0.00016438,2]
[352122381,1738955441725,-500.0,0.00016438,2]
[352122384,1738955441736,-500.0,0.00016438,2]
[352122386,1738955441748,-537.6,0.00016438,2]
[352122388,1738955441761,-500.0,0.00016438,2]
[352122391,1738955441774,-500.0,0.00016438,2]
[352122393,1738955441786,-1324.39,0.00016438,2]
[352122395,1738955441798,-500.0,0.00016438,2]
[352122398,1738955441810,-500.0,0.00016438,2]
[352122400,1738955441824,-500.0,0.00016438,2]
[352122402,1738955441835,-500.0,0.00016438,2]
[352122405,1738955441848,-500.0,0.00016438,2]
[352122407,1738955441861,-500.0,0.00016438,2]
[352122409,1738955441873,-547.04491183,0.00016438,2]
[352122412,1738955441884,-500.0,0.00016438,2]
[352122414,1738955441896,-500.27,0.00016438,2]
[352122416,1738955441908,-500.0,0.00016438,2]
[352122418,1738955441920,-500.0,0.00016438,2]
[352122421,1738955441933,-500.0,0.00016438,2]
[352122423,1738955441946,-1198.46,0.00016438,2]
[352122426,1738955441960,-500.0,0.00016438,2]
[352122428,1738955441972,-1686.26,0.00016438,2]
[352122430,1738955441982,-500.0,0.00016438,2]
[352122432,1738955441992,-500.0,0.00016438,2]
[352122434,1738955442001,-487.7824677,0.00016438,2]
[352122436,1738955442011,-500.0,0.00016438,2]
[352122438,1738955442024,-500.0,0.00016438,2]
[352122440,1738955442035,-500.0,0.00016438,2]
[352122442,1738955442044,-500.0,0.00016438,2]
[352122444,1738955442054,-500.0,0.00016438,2]
[352122446,1738955442064,-1564.29,0.00016438,2]
[352122448,1738955442073,-500.0,0.00016438,2]
[352122450,1738955442083,-523.08,0.00016438,2]
[352122452,1738955442093,-500.0,0.00016438,2]
[352122454,1738955442102,-500.0,0.00016438,2]
[352122456,1738955442111,-500.0,0.00016438,2]
[352122458,1738955442121,-500.0,0.00016438,2]
[352122460,1738955442131,-500.0,0.00016438,2]
[352122462,1738955442140,-500.0,0.00016438,2]
[352122464,1738955442150,-616.01174279,0.00016438,2]
[352122466,1738955442161,-514.3,0.00016438,2]
[352122468,1738955442171,-1753.9,0.00016438,2]
[352122470,1738955442181,-500.0,0.00016438,2]
[352122472,1738955442191,-500.0,0.00016438,2]
[352122474,1738955442200,-500.0,0.00016438,2]
[352122476,1738955442211,-500.0,0.00016438,2]
[352122514,1738955442533,-307.51895649,0.00016438,2]
[352122519,1738955442566,-525.69,0.00016438,2]
[352122521,1738955442581,-539.63,0.00016438,2]
[352122523,1738955442590,-500.0,0.00016438,2]
[352122525,1738955442599,-500.0,0.00016438,2]
[352122527,1738955442608,-1109.91,0.00016438,2]
[352122529,1738955442617,-500.0,0.00016438,2]
[352122531,1738955442627,-1026.76,0.00016438,2]
[352122533,1738955442636,-500.0,0.00016438,2]
[352122535,1738955442645,-500.0,0.00016438,2]
[352122537,1738955442654,-500.0,0.00016438,2]
[352122539,1738955442664,-500.0,0.00016438,2]
[352122541,1738955442673,-533.4,0.00016438,2]
[352122543,1738955442682,-500.0,0.00016438,2]
[352122545,1738955442691,-500.0,0.00016438,2]
[352122547,1738955442700,-500.0,0.00016438,2]
[352122549,1738955442709,-500.0,0.00016438,2]
[352122551,1738955442718,-500.0,0.00016438,2]
[352122553,1738955442727,-500.0,0.00016438,2]
[352122555,1738955442736,-1609.66,0.00016438,2]
[352122557,1738955442745,-500.0,0.00016438,2]
[352122559,1738955442755,-500.0,0.00016438,2]
[352122561,1738955442764,-500.0,0.00016438,2]
[352122563,1738955442773,-500.0,0.00016438,2]
[352122565,1738955442782,-500.0,0.00016438,2]
[352122567,1738955442791,-500.0,0.00016438,2]
[352122569,1738955442800,-500.0,0.00016438,2]
[352122571,1738955442809,-500.0,0.00016438,2]
[352122573,1738955442818,-510.12,0.00016438,2]
[352122575,1738955442827,-534.08,0.00016438,2]
[352122577,1738955442836,-926.17,0.00016438,2]
[352122579,1738955442845,-500.0,0.00016438,2]
[352122581,1738955442854,-500.0,0.00016438,2]
[352122582,1738955442863,-500.0,0.00016438,2]
[352122584,1738955442873,-500.0,0.00016438,2]
[352122586,1738955442881,-501.58447892,0.00016438,2]
[352122589,1738955442891,-500.0,0.00016438,2]
[352122590,1738955442899,-500.0,0.00016438,2]
[352122592,1738955442908,-500.0,0.00016438,2]
[352122594,1738955442917,-500.0,0.00016438,2]
[352122596,1738955442927,-597.32,0.00016438,2]
[352122599,1738955442936,-500.0,0.00016438,2]
[352122600,1738955442945,-500.0,0.00016438,2]
[352122602,1738955442955,-500.0,0.00016438,2]
[352122604,1738955442964,-500.0,0.00016438,2]
[352122606,1738955442974,-520.13,0.00016438,2]
[352122609,1738955442983,-500.0,0.00016438,2]
[352122611,1738955442992,-500.0,0.00016438,2]
[352122612,1738955443002,-500.0,0.00016438,2]
[352122614,1738955443011,-500.0,0.00016438,2]
[352122616,1738955443022,-500.0,0.00016438,2]
[352122618,1738955443031,-500.0,0.00016438,2]
[352122621,1738955443040,-1235.58,0.00016438,2]
[352122624,1738955443050,-1164.95,0.00016438,2]
[352122627,1738955443061,-500.0,0.00016438,2]
[352122630,1738955443070,-500.0,0.00016438,2]
[352122633,1738955443079,-500.0,0.00016438,2]
[352122636,1738955443088,-500.0,0.00016438,2]
[352122639,1738955443098,-527.31,0.00016438,2]
[352122642,1738955443107,-2983.63,0.00016438,2]
[352122645,1738955443116,-500.0,0.00016438,2]
[352122648,1738955443125,-500.0,0.00016438,2]
[352122650,1738955443134,-708.09,0.00016438,2]
[352122652,1738955443143,-500.0,0.00016438,2]
[352122654,1738955443153,-500.0,0.00016438,2]
[352122656,1738955443164,-500.0,0.00016438,2]
[352122658,1738955443174,-500.0,0.00016438,2]
[352122660,1738955443183,-500.0,0.00016438,2]
[352122662,1738955443192,-1967.95,0.00016438,2]
[352122664,1738955443201,-500.0,0.00016438,2]
[352122666,1738955443212,-500.0,0.00016438,2]
[352122668,1738955443221,-500.0,0.00016438,2]
[352122670,1738955443238,-500.0,0.00016438,2]
[352122672,1738955443248,-500.0,0.00016438,2]
[352122674,1738955443257,-495.0,0.00016438,2]
[352122676,1738955443266,-500.0,0.00016438,2]
[352122678,1738955443277,-500.0,0.00016438,2]
[352122680,1738955443286,-500.0,0.00016438,2]
[352122682,1738955443296,-500.0,0.00016438,2]
[352122684,1738955443305,-500.0,0.00016438,2]
[352122686,1738955443314,-500.0,0.00016438,2]
[352122688,1738955443323,-2645.46,0.00016438,2]
[352122690,1738955443333,-1432.54,0.00016438,2]
[352122692,1738955443343,-592.7,0.00016438,2]
[352122694,1738955443352,-500.0,0.00016438,2]
[352122696,1738955443361,-500.0,0.00016438,2]
[352122698,1738955443370,-500.0,0.00016438,2]
[352122700,1738955443380,-500.0,0.00016438,2]
[352122702,1738955443389,-5201.02,0.00016438,2]
[352122704,1738955443398,-500.0,0.00016438,2]
[352122706,1738955443407,-381.02015508,0.00016438,2]
[352122708,1738955443416,-500.0,0.00016438,2]
[352122710,1738955443425,-1488.99,0.00016438,2]
[352122712,1738955443435,-500.0,0.00016438,2]
[352122714,1738955443444,-2651.33,0.00016438,2]
[352122716,1738955443453,-500.0,0.00016438,2]
[352122718,1738955443463,-500.0,0.00016438,2]
[352122720,1738955443472,-500.0,0.00016438,2]
[352122722,1738955443482,-1931.34,0.00016438,2]
[352122724,1738955443491,-500.0,0.00016438,2]
[352122726,1738955443501,-500.0,0.00016438,2]
[352122728,1738955443510,-4051.73,0.00016438,2]
[352122730,1738955443519,-1404.79,0.00016438,2]
[352122732,1738955443530,-500.0,0.00016438,2]
[352122734,1738955443539,-500.0,0.00016438,2]
[352122736,1738955443549,-500.0,0.00016438,2]
[352122738,1738955443558,-1034.14,0.00016438,2]
[352122740,1738955443568,-500.0,0.00016438,2]
[352122742,1738955443578,-571.94,0.00016438,2]
[352122744,1738955443587,-500.0,0.00016438,2]
[352122746,1738955443596,-907.33,0.00016438,2]
[352122748,1738955443605,-1393.87,0.00016438,2]
[352122750,1738955443615,-254.59556122,0.00016438,2]
[352122752,1738955443624,-500.0,0.00016438,2]
[352122754,1738955443635,-3298.82,0.00016438,2]
[352122756,1738955443644,-1496.66,0.00016438,2]
[352122759,1738955443653,-3172.98,0.00016438,2]
[352122760,1738955443662,-500.0,0.00016438,2]
[352122763,1738955443673,-500.0,0.00016438,2]
[352122764,1738955443683,-1753.521309,0.00016438,2]
[352122766,1738955443692,-826.71,0.00016438,2]
[352122768,1738955443701,-473.24634479,0.00016438,2]
[352122770,1738955443710,-500.0,0.00016438,2]
[352122772,1738955443719,-500.0,0.00016438,2]
[352122774,1738955443729,-500.0,0.00016438,2]
[352122776,1738955443738,-500.0,0.00016438,2]
[352122778,1738955443748,-500.0,0.00016438,2]
[352122780,1738955443757,-168.632492,0.00016438,2]
[352122782,1738955443767,-1112.51,0.00016438,2]
[352122784,1738955443778,-1912.78,0.00016438,2]
[352122786,1738955443787,-504.67946426,0.00016438,2]
[352122788,1738955443796,-500.0,0.00016438,2]
[352122790,1738955443806,-500.0,0.00016438,2]
[352122792,1738955443816,-500.0,0.00016438,2]
[352122794,1738955443826,-579.89,0.00016438,2]
[352122796,1738955443836,-500.0,0.00016438,2]
[352122798,1738955443845,-1059.16,0.00016438,2]
[352122800,1738955443854,-500.0,0.00016438,2]
[352122802,1738955443863,-500.0,0.00016438,2]
[352122804,1738955443873,-500.0,0.00016438,2]
[352122806,1738955443882,-1515.87,0.00016438,2]
[352122808,1738955443891,-500.0,0.00016438,2]
[352122810,1738955443900,-500.0,0.00016438,2]
[352122812,1738955443909,-1128.94,0.00016438,2]
[352122814,1738955443918,-500.0,0.00016438,2]
[352122816,1738955443927,-500.0,0.00016438,2]
[352122818,1738955443936,-2050.44,0.00016438,2]
[352122820,1738955443946,-1283.98,0.00016438,2]
[352122822,1738955443955,-500.0,0.00016438,2]
[352122824,1738955443965,-779.73,0.00016438,2]
[352122826,1738955443974,-500.0,0.00016438,2]
[352122828,1738955443983,-500.0,0.00016438,2]
[352122830,1738955443993,-500.0,0.00016438,2]
[352122832,1738955444002,-500.0,0.00016438,2]
[352122834,1738955444011,-2039.5,0.00016438,2]
[352122836,1738955444020,-500.0,0.00016438,2]
[352122839,1738955444030,-500.0,0.00016438,2]
[352122840,1738955444039,-1911.048699,0.00016438,2]
[352122843,1738955444049,-1455.93,0.00016438,2]
[352122845,1738955444058,-1071.23,0.00016438,2]
[352122847,1738955444068,-513.06,0.00016438,2]
[352122849,1738955444077,-2139.1,0.00016438,2]
[352122851,1738955444087,-500.0,0.00016438,2]
[352122853,1738955444097,-500.0,0.00016438,2]
[352122854,1738955444106,-565.0,0.00016438,2]
[352122857,1738955444117,-655.94,0.00016438,2]
[352122859,1738955444126,-500.0,0.00016438,2]
[352122861,1738955444136,-697.84,0.00016438,2]
[352122862,1738955444145,-1939.27,0.00016438,2]
[352122865,1738955444155,-500.0,0.00016438,2]
[352122867,1738955444168,-869.81,0.00016438,2]
[352122869,1738955444178,-1505.7,0.00016438,2]
[352122871,1738955444187,-1106.9,0.00016438,2]
[352122873,1738955444198,-500.0,0.00016438,2]
[352122875,1738955444207,-500.0,0.00016438,2]
[352122877,1738955444216,-500.0,0.00016438,2]
[352122879,1738955444226,-500.0,0.00016438,2]
[352122881,1738955444236,-3434.97,0.00016438,2]
[352122882,1738955444245,-1788.79,0.00016438,2]
[352122883,1738955444254,-1249.36,0.00016438,2]
[352122884,1738955444263,-2093.66,0.00016438,2]
[352122885,1738955444272,-500.0,0.00016438,2]
[352122886,1738955444281,-1194.97,0.00016438,2]
[352122887,1738955444289,-500.0,0.00016438,2]
[352122888,1738955444298,-500.0,0.00016438,2]
[352122889,1738955444307,-500.0,0.00016438,2]
[352122890,1738955444318,-577.38,0.00016438,2]
[352122891,1738955444328,-1023.71,0.00016438,2]
[352122892,1738955444336,-500.0,0.00016438,2]
[352122893,1738955444345,-3666.71,0.00016438,2]
[352122894,1738955444354,-500.0,0.00016438,2]
[352122895,1738955444363,-500.0,0.00016438,2]
[352122896,1738955444373,-500.0,0.00016438,2]
[352122898,1738955444381,-500.0,0.00016438,2]
[352122900,1738955444390,-500.0,0.00016438,2]
[352122902,1738955444399,-500.0,0.00016438,2]
[352122904,1738955444408,-503.76407799,0.00016438,2]
[352122906,1738955444417,-500.0,0.00016438,2]
[352122908,1738955444426,-500.0,0.00016438,2]
[352122910,1738955444435,-1784.55,0.00016438,2]
[352122912,1738955444445,-2542.09,0.00016438,2]
[352122914,1738955444454,-2775.66,0.00016438,2]
[352122916,1738955444463,-9510.66,0.00016438,2]
[352122918,1738955444473,-972.98,0.00016438,2]
[352122920,1738955444483,-1360.61,0.00016438,2]
[352122922,1738955444491,-500.0,0.00016438,2]
[352122924,1738955444500,-500.0,0.00016438,2]
[352122926,1738955444509,-500.0,0.00016438,2]
[352122928,1738955444518,-500.0,0.00016438,2]
[352122930,1738955444528,-500.0,0.00016438,2]
[352122932,1738955444537,-2378.49,0.00016438,2]
[352122934,1738955444546,-500.0,0.00016438,2]
[352122936,1738955444555,-500.0,0.00016438,2]
[352122938,1738955444564,-500.0,0.00016438,2]
[352122940,1738955444574,-589.07,0.00016438,2]
[352122942,1738955444584,-500.0,0.00016438,2]
[352122944,1738955444593,-2204.05,0.00016438,2]
[352122946,1738955444602,-1166.67,0.00016438,2]
[352122948,1738955444611,-500.0,0.00016438,2]
[352122950,1738955444621,-927.69,0.00016438,2]
[352122952,1738955444630,-500.0,0.00016438,2]
[352122954,1738955444640,-500.0,0.00016438,2]
[352122956,1738955444649,-2552.27,0.00016438,2]
[352122958,1738955444658,-1755.36,0.00016438,2]
[352122960,1738955444668,-558.04,0.00016438,2]
[352122962,1738955444677,-500.0,0.00016438,2]
[352122964,1738955444687,-500.0,0.00016438,2]
[352122966,1738955444696,-7368.42,0.00016438,2]
[352122968,1738955444705,-500.0,0.00016438,2]
[352122970,1738955444714,-500.0,0.00016438,2]
[352122972,1738955444723,-2364.04,0.00016438,2]
[352122974,1738955444732,-500.0,0.00016438,2]
[352122976,1738955444741,-500.0,0.00016438,2]
[352122978,1738955444750,-845.37,0.00016438,2]
[352122980,1738955444759,-500.0,0.00016438,2]
[352122982,1738955444768,-500.0,0.00016438,2]
[352122984,1738955444779,-500.0,0.00016438,2]
[352122986,1738955444788,-500.0,0.00016438,2]
[352122988,1738955444797,-1639.45,0.00016438,2]
[352122990,1738955444806,-500.0,0.00016438,2]
[352122992,1738955444815,-2447.83,0.00016438,2]
[352122993,1738955444825,-500.0,0.00016438,2]
[352122995,1738955444835,-546.48,0.00016438,2]
[352122998,1738955444845,-1322.39,0.00016438,2]
[352123000,1738955444854,-500.0,0.00016438,2]
[352123002,1738955444863,-500.0,0.00016438,2]
[352123004,1738955444873,-2542.83,0.00016438,2]
[352123006,1738955444882,-1776.61,0.00016438,2]
[352123007,1738955444891,-500.0,0.00016438,2]
[352123010,1738955444901,-1712.83,0.00016438,2]
[352123012,1738955444910,-2187.59,0.00016438,2]
[352123013,1738955444920,-1057.55,0.00016438,2]
[352123016,1738955444929,-500.0,0.00016438,2]
[352123017,1738955444940,-908.4,0.00016438,2]
[352123019,1738955444949,-500.0,0.00016438,2]
[352123022,1738955444958,-500.0,0.00016438,2]
[352123024,1738955444967,-500.0,0.00016438,2]
[352123025,1738955444976,-3731.5,0.00016438,2]
[352123027,1738955444985,-1802.42,0.00016438,2]
[352123029,1738955444994,-639.80451127,0.00016438,2]
[352123031,1738955445003,-500.0,0.00016438,2]
[352123033,1738955445012,-500.0,0.00016438,2]
[352123035,1738955445021,-500.0,0.00016438,2]
[352123037,1738955445030,-1535.63,0.00016438,2]
[352123039,1738955445040,-500.0,0.00016438,2]
[352123041,1738955445049,-500.0,0.00016438,2]
[352123043,1738955445059,-500.0,0.00016438,2]
[352123045,1738955445068,-500.0,0.00016438,2]
[352123047,1738955445077,-500.0,0.00016438,2]
[352123049,1738955445087,-500.0,0.00016438,2]
[352123051,1738955445097,-500.0,0.00016438,2]
[352123053,1738955445106,-3537.16,0.00016438,2]
[352123055,1738955445116,-1493.24,0.00016438,2]
[352123057,1738955445126,-1156.0,0.00016438,2]
[352123059,1738955445136,-588.357653,0.00016438,2]
[352123061,1738955445146,-500.0,0.00016438,2]
[352123064,1738955445156,-530.35,0.00016438,2]
[352123065,1738955445169,-500.0,0.00016438,2]
[352123068,1738955445179,-1087.62,0.00016438,2]
[352123070,1738955445188,-500.0,0.00016438,2]
[352123072,1738955445198,-500.0,0.00016438,2]
[352123073,1738955445208,-2800.82,0.00016438,2]
[352123075,1738955445218,-3603.35,0.00016438,2]
[352123078,1738955445228,-500.0,0.00016438,2]
[352123080,1738955445238,-500.0,0.00016438,2]
[352123082,1738955445249,-500.0,0.00016438,2]
[352123085,1738955445259,-500.0,0.00016438,2]
[352123087,1738955445269,-1406.5,0.00016438,2]
[352123089,1738955445280,-4136.15,0.00016438,2]
[352123091,1738955445289,-3810.94,0.00016438,2]
[352123093,1738955445299,-500.0,0.00016438,2]
[352123095,1738955445308,-3044.91,0.00016438,2]
[352123097,1738955445317,-500.0,0.00016438,2]
[352123099,1738955445332,-856.32,0.00016438,2]
[352123100,1738955445341,-500.0,0.00016438,2]
[352123103,1738955445351,-500.0,0.00016438,2]
[352123105,1738955445361,-500.0,0.00016438,2]
[352123107,1738955445370,-500.0,0.00016438,2]
[352123108,1738955445379,-5466.55,0.00016438,2]
[352123110,1738955445390,-500.0,0.00016438,2]
[352123112,1738955445400,-500.0,0.00016438,2]
[352123114,1738955445410,-710.33,0.00016438,2]
[352123116,1738955445419,-1272.27,0.00016438,2]
[352123118,1738955445429,-554.37,0.00016438,2]
[352123120,1738955445440,-1135.79,0.00016438,2]
[352123122,1738955445450,-500.0,0.00016438,2]
[352123125,1738955445459,-500.0,0.00016438,2]
[352123127,1738955445468,-500.0,0.00016438,2]
[352123129,1738955445478,-500.0,0.00016438,2]
[352123131,1738955445487,-2837.72,0.00016438,2]
[352123132,1738955445497,-500.0,0.00016438,2]
[352123135,1738955445507,-905.38,0.00016438,2]
[352123136,1738955445516,-500.0,0.00016438,2]
[352123139,1738955445526,-500.0,0.00016438,2]
[352123141,1738955445535,-500.0,0.00016438,2]
[352123143,1738955445545,-500.0,0.00016438,2]
[352123145,1738955445554,-500.0,0.00016438,2]
[352123147,1738955445564,-376.28,0.00016438,2]
[352123149,1738955445575,-373.41,0.00016438,2]
[352123151,1738955445584,-500.0,0.00016461,2]
[352123153,1738955445593,-2740.909,0.00016475,2]
[352123155,1738955445603,-150.0,0.00016515,2]
[352123157,1738955445612,-150.0,0.0001655,2]
[352123159,1738955445622,-3474.48614818,0.00016551,2]
[352123161,1738955445631,-500.0,0.00016554,2]
[352123163,1738955445641,-150.0,0.00016555,2]
[352123165,1738955445650,-150.0,0.00016558,2]
[352123167,1738955445659,-150.0,0.00016569,2]
[352123169,1738955445672,-150.0,0.00016569,2]
[352123171,1738955445681,-284.19105783,0.00016573,2]
[352123173,1738955445691,-155.11368236,0.00016573,2]
[352123175,1738955445701,-150.0,0.00016573,2]
[352123177,1738955445710,-503.39488666,0.00016574,2]
[352123197,1738955445882,-500.0,0.00016574,2]
[352123199,1738955445892,-500.0,0.00016574,2]
[352123201,1738955445902,-500.0,0.00016574,2]
[352123203,1738955445911,-285.6773756,0.00016574,2]
[352123206,1738955445921,-501.14326517,0.00016574,2]
[352123210,1738955445931,-501.63453026,0.00016574,2]
[352123214,1738955445941,-500.0,0.00016574,2]
[352123218,1738955445951,-503.556211,0.00016574,2]
[352123221,1738955445960,-401.53515125,0.00016574,2]
[352123224,1738955445970,-1036.2,0.00016574,2]
[352123227,1738955445979,-500.0,0.00016574,2]
[352123231,1738955445988,-500.0,0.00016574,2]
[352123233,1738955445997,-500.0,0.00016574,2]
[352123235,1738955446008,-1717.78,0.00016574,2]
[352123237,1738955446017,-500.0,0.00016574,2]
[352123239,1738955446028,-705.47,0.00016574,2]
[352123241,1738955446037,-1511.7,0.00016574,2]
[352123243,1738955446047,-500.0,0.00016574,2]
[352123245,1738955446057,-503.33743081,0.00016574,2]
[352123247,1738955446067,-500.0,0.00016574,2]
[352123249,1738955446076,-500.0,0.00016574,2]
[352123251,1738955446085,-500.0,0.00016574,2]
[352123253,1738955446094,-500.0,0.00016574,2]
[352123254,1738955446105,-188.66118181,0.00016574,2]
[352123257,1738955446115,-500.0,0.00016574,2]
[352123259,1738955446124,-500.0,0.00016574,2]
[352123260,1738955446134,-500.0,0.00016574,2]
[352123263,1738955446144,-500.0,0.00016574,2]
[352123265,1738955446154,-500.0,0.00016574,2]
[352123267,1738955446167,-500.0,0.00016574,2]
[352123269,1738955446177,-500.0,0.00016574,2]
[352123271,1738955446188,-500.0,0.00016574,2]
[352123272,1738955446197,-500.0,0.00016574,2]
[352123274,1738955446208,-504.05695635,0.00016574,2]
[352123276,1738955446217,-1369.53,0.00016574,2]
[352123279,1738955446227,-543.93821262,0.00016574,2]
[352123281,1738955446237,-500.0,0.00016574,2]
[352123282,1738955446248,-500.0,0.00016574,2]
[352123285,1738955446258,-500.0,0.00016574,2]
[352123287,1738955446267,-500.0,0.00016574,2]
[352123289,1738955446281,-500.0,0.00016574,2]
[352123291,1738955446291,-500.0,0.00016574,2]
[352123293,1738955446301,-500.0,0.00016574,2]
[352123295,1738955446311,-500.0,0.00016574,2]
[352123296,1738955446320,-500.0,0.00016574,2]
[352123299,1738955446330,-500.0,0.00016574,2]
[352123301,1738955446339,-216.50770705,0.00016574,2]
[352123303,1738955446349,-500.0,0.00016574,2]
[352123305,1738955446358,-585.24,0.00016574,2]
[352123307,1738955446368,-500.0,0.00016574,2]
[352123309,1738955446377,-677.07,0.00016574,2]
[352123311,1738955446386,-500.0,0.00016574,2]
[352123313,1738955446396,-500.0,0.00016574,2]
[352123315,1738955446405,-1720.51,0.00016574,2]
[352123317,1738955446416,-508.71198718,0.00016574,2]
[352123319,1738955446426,-500.0,0.00016574,2]
[352123321,1738955446435,-156.73767229,0.00016574,2]
[352123323,1738955446445,-1513.11,0.00016574,2]
[352123325,1738955446454,-500.0,0.00016574,2]
[352123327,1738955446464,-698.98,0.00016574,2]
[352123329,1738955446474,-500.0,0.00016574,2]
[352123331,1738955446484,-1376.19,0.00016574,2]
[352123333,1738955446493,-500.0,0.00016574,2]
[352123335,1738955446503,-500.0,0.00016574,2]
[352123337,1738955446512,-627.17,0.00016574,2]
[352123339,1738955446521,-500.0,0.00016574,2]
[352123341,1738955446535,-500.0,0.00016574,2]
[352123343,1738955446545,-1688.97,0.00016574,2]
[352123345,1738955446554,-500.0,0.00016574,2]
[352123347,1738955446564,-500.0,0.00016574,2]
[352123349,1738955446573,-333.98898323,0.00016574,2]
[352123351,1738955446582,-500.0,0.00016574,2]
[352123353,1738955446592,-500.0,0.00016574,2]
[352123355,1738955446602,-1039.22,0.00016574,2]
[352123357,1738955446611,-500.0,0.00016574,2]
[352123359,1738955446621,-500.0,0.00016574,2]
[352123361,1738955446630,-500.0,0.00016574,2]
[352123363,1738955446640,-500.0,0.00016574,2]
[352123365,1738955446650,-500.0,0.00016574,2]
[352123367,1738955446659,-500.0,0.00016574,2]
[352123369,1738955446669,-1895.57,0.00016574,2]
[352123371,1738955446679,-500.0,0.00016574,2]
[352123373,1738955446688,-500.0,0.00016574,2]
[352123375,1738955446697,-500.0,0.00016574,2]
[352123377,1738955446706,-500.0,0.00016574,2]
[352123379,1738955446716,-2029.24,0.00016574,2]
[352123381,1738955446726,-1408.27,0.00016574,2]
[352123383,1738955446735,-500.0,0.00016574,2]
[352123385,1738955446745,-1033.73,0.00016574,2]
[352123387,1738955446754,-500.0,0.00016574,2]
[352123389,1738955446764,-1778.73,0.00016574,2]
[352123391,1738955446775,-500.0,0.00016574,2]
[352123393,1738955446784,-500.0,0.00016574,2]
[352123395,1738955446793,-1443.05,0.00016574,2]
[352123397,1738955446803,-500.0,0.00016574,2]
[352123399,1738955446813,-500.0,0.00016574,2]
[352123401,1738955446823,-1760.2,0.00016574,2]
[352123403,1738955446833,-500.0,0.00016574,2]
[352123405,1738955446843,-1884.07,0.00016574,2]
[352123407,1738955446852,-3959.36,0.00016574,2]
[352123409,1738955446862,-500.0,0.00016574,2]
[352123411,1738955446871,-500.0,0.00016574,2]
[352123413,1738955446881,-668.89,0.00016574,2]
[352123415,1738955446890,-508.1690318,0.00016574,2]
[352123417,1738955446900,-500.0,0.00016574,2]